[Event "*** Titled Tuesday Blitz"]
[Site "Chess.com"]
[Date "2021.04.06"]
[Round "8"]
[White "Keks2017"]
[Black "azikom"]
[Result "1-0"]
[WhiteElo "2569"]
[BlackElo "2690"]
[TimeControl "180+1"]
[EndTime "11:31:19 PDT"]
[Termination "Keks2017 won by resignation"]

1. e4 {[%clk 0:02:59.8]} 1... e5 {[%clk 0:02:58.9]} 2. Nf3 {[%clk 0:02:59.2]}
2... Nc6 {[%clk 0:02:59.5]} 3. Bb5 {[%clk 0:02:58.5]} 3... a6 {[%clk 0:02:59.6]}
4. Ba4 {[%clk 0:02:58.6]} 4... Nge7 {[%clk 0:03:00]} 5. O-O {[%clk 0:02:56.9]}
5... d6 {[%clk 0:03:00]} 6. Re1 {[%clk 0:02:56.3]} 6... Bd7 {[%clk 0:03:00.4]}
7. c3 {[%clk 0:02:56.3]} 7... Ng6 {[%clk 0:02:58.2]} 8. d4 {[%clk 0:02:55.9]}
8... Be7 {[%clk 0:02:57.9]} 9. Nbd2 {[%clk 0:02:52.1]} 9... O-O {[%clk
0:02:57.8]} 10. Nf1 {[%clk 0:02:51.2]} 10... Re8 {[%clk 0:02:45.1]} 11. Ng3
{[%clk 0:02:43.9]} 11... h6 {[%clk 0:02:44.9]} 12. h3 {[%clk 0:02:42.7]} 12...
Bf8 {[%clk 0:02:43.4]} 13. d5 {[%clk 0:02:39.9]} 13... Nb8 {[%clk 0:02:42.2]}
14. Bc2 {[%clk 0:02:39.7]} 14... a5 {[%clk 0:02:41.1]} 15. Bd2 {[%clk
0:02:24.5]} 15... Nh4 {[%clk 0:02:37.7]} 16. Nxh4 {[%clk 0:02:21.4]} 16... Qxh4
{[%clk 0:02:37]} 17. Qf3 {[%clk 0:02:20.8]} 17... Qd8 {[%clk 0:02:31.8]} 18. Nf5
{[%clk 0:02:19.1]} 18... Na6 {[%clk 0:02:19.7]} 19. g4 {[%clk 0:02:08.5]} 19...
Nc5 {[%clk 0:02:10.5]} 20. Kh2 {[%clk 0:02:07.5]} 20... Kh7 {[%clk 0:01:58.6]}
21. Rg1 {[%clk 0:01:45.6]} 21... g6 {[%clk 0:01:37.5]} 22. Qg3 {[%clk
0:01:05.1]} 22... c6 {[%clk 0:01:11.1]} 23. Raf1 {[%clk 0:00:52.9]} 23... cxd5
{[%clk 0:00:52.8]} 24. exd5 {[%clk 0:00:51.8]} 24... b5 {[%clk 0:00:52.2]} 25.
h4 {[%clk 0:00:36.1]} 25... Ra6 {[%clk 0:00:43.2]} 26. h5 {[%clk 0:00:33.3]}
26... e4 {[%clk 0:00:42.5]} 27. hxg6+ {[%clk 0:00:28.9]} 27... fxg6 {[%clk
0:00:42.1]} 28. Nd4 {[%clk 0:00:28.3]} 28... Bg7 {[%clk 0:00:38.5]} 29. f4
{[%clk 0:00:20.5]} 29... b4 {[%clk 0:00:35.5]} 30. f5 {[%clk 0:00:20.1]} 30...
g5 {[%clk 0:00:33.4]} 31. Qh3 {[%clk 0:00:16.4]} 31... Be5+ {[%clk 0:00:29.3]}
32. Kh1 {[%clk 0:00:16.5]} 32... Qf6 {[%clk 0:00:28.9]} 33. Ne6 {[%clk
0:00:15.3]} 33... Kg8 {[%clk 0:00:28.5]} 34. Rf2 {[%clk 0:00:11.8]} 34... bxc3
{[%clk 0:00:27.5]} 35. bxc3 {[%clk 0:00:12]} 35... Rb6 {[%clk 0:00:27]} 36. Be3
{[%clk 0:00:10.1]} 36... Rb2 {[%clk 0:00:25.2]} 37. Bxc5 {[%clk 0:00:07.4]}
37... dxc5 {[%clk 0:00:24.8]} 38. Nxc5 {[%clk 0:00:07.5]} 38... Bc8 {[%clk
0:00:17.7]} 39. Nxe4 {[%clk 0:00:07.5]} 39... Qd8 {[%clk 0:00:15.3]} 40. f6
{[%clk 0:00:07.6]} 40... Rxc2 {[%clk 0:00:10.1]} 41. Qxh6 {[%clk 0:00:07]} 41...
Qd7 {[%clk 0:00:08.2]} 42. f7+ {[%clk 0:00:06.8]} 42... Qxf7 {[%clk 0:00:08.4]}
43. Rxf7 {[%clk 0:00:06.8]} 43... Rh2+ {[%clk 0:00:08.8]} 44. Qxh2 {[%clk
0:00:05.8]} 44... Bxh2 {[%clk 0:00:08.9]} 45. Kxh2 {[%clk 0:00:06.1]} 45... Kxf7
{[%clk 0:00:08.6]} 46. Nd6+ {[%clk 0:00:05.9]} 46... Ke7 {[%clk 0:00:09.5]} 47.
Nxe8 {[%clk 0:00:06.7]} 47... Kxe8 {[%clk 0:00:10.1]} 48. Kg3 {[%clk 0:00:07.3]}
48... Kd7 {[%clk 0:00:10.2]} 49. Re1 {[%clk 0:00:08.2]} 49... Kd6 {[%clk
0:00:10.5]} 50. Rd1 {[%clk 0:00:09.1]} 50... Ba6 {[%clk 0:00:09.8]} 51. Rd4
{[%clk 0:00:08.6]} 51... Bb5 {[%clk 0:00:08.4]} 52. Kf2 {[%clk 0:00:07.9]} 52...
Kc5 {[%clk 0:00:07.7]} 53. Ke3 {[%clk 0:00:08.1]} 53... Bd7 {[%clk 0:00:08]} 54.
c4 {[%clk 0:00:07.8]} 54... a4 {[%clk 0:00:08.3]} 55. Kd3 {[%clk 0:00:08]} 55...
a3 {[%clk 0:00:08.6]} 56. Kc3 {[%clk 0:00:08.2]} 56... Bc8 {[%clk 0:00:08.6]}
57. Re4 {[%clk 0:00:08.4]} 57... Bd7 {[%clk 0:00:08.5]} 58. Re5 {[%clk
0:00:08.6]} 58... Bxg4 {[%clk 0:00:07.8]} 59. Rxg5 {[%clk 0:00:08.8]} 59... Be2
{[%clk 0:00:08.3]} 60. Re5 {[%clk 0:00:08.3]} 60... Bf1 {[%clk 0:00:07.9]} 61.
d6+ {[%clk 0:00:08.2]} 61... Kxd6 {[%clk 0:00:07.7]} 62. Ra5 {[%clk 0:00:08.5]}
62... Kc6 {[%clk 0:00:07.4]} 63. Rxa3 {[%clk 0:00:08.5]} 63... Kc5 {[%clk
0:00:07.5]} 64. Ra5+ {[%clk 0:00:08.7]} 64... Kb6 {[%clk 0:00:07.4]} 65. Rg5
{[%clk 0:00:09.6]} 65... Be2 {[%clk 0:00:07.1]} 66. Kb4 {[%clk 0:00:10.5]} 66...
Bf1 {[%clk 0:00:07.3]} 67. Rg6+ {[%clk 0:00:10.7]} 67... Kc7 {[%clk 0:00:06.8]}
68. a4 {[%clk 0:00:10.9]} 68... Be2 {[%clk 0:00:06.3]} 69. a5 {[%clk 0:00:11.2]}
69... Bd3 {[%clk 0:00:06.8]} 70. Rg7+ {[%clk 0:00:11]} 70... Kc6 {[%clk
0:00:06.5]} 71. a6 {[%clk 0:00:11.3]} 71... Be4 {[%clk 0:00:06.7]} 72. Rg4
{[%clk 0:00:10]} 72... Bf3 {[%clk 0:00:06.3]} 73. Rf4 {[%clk 0:00:10.1]} 73...
Bg2 {[%clk 0:00:06.4]} 74. Rf6+ {[%clk 0:00:10.1]} 74... Kc7 {[%clk 0:00:06.4]}
75. Kc5 {[%clk 0:00:10.3]} 75... Be4 {[%clk 0:00:06.5]} 76. Rf7+ {[%clk
0:00:10.2]} 76... Kc8 {[%clk 0:00:06.6]} 77. Rg7 {[%clk 0:00:10.4]} 77... Bf3
{[%clk 0:00:06.3]} 78. Kb6 {[%clk 0:00:10.5]} 78... Bh1 {[%clk 0:00:05.6]} 79.
c5 {[%clk 0:00:10.7]} 1-0

[Event "*** Titled Tuesday Blitz"]
[Site "Chess.com"]
[Date "2021.04.06"]
[Round "8"]
[White "enriquetejedor"]
[Black "MalyDominator"]
[Result "1-0"]
[WhiteElo "2602"]
[BlackElo "2489"]
[TimeControl "180+1"]
[EndTime "11:32:11 PDT"]
[Termination "enriquetejedor won by resignation"]

1. e4 {[%clk 0:03:00.9]} 1... c5 {[%clk 0:02:59.5]} 2. Nc3 {[%clk 0:03:01.2]}
2... Nc6 {[%clk 0:02:59.4]} 3. g3 {[%clk 0:03:01.4]} 3... g6 {[%clk 0:02:58.3]}
4. Bg2 {[%clk 0:03:02.3]} 4... Bg7 {[%clk 0:02:58.6]} 5. d3 {[%clk 0:03:02.3]}
5... e6 {[%clk 0:02:58.8]} 6. Be3 {[%clk 0:03:01.2]} 6... Nd4 {[%clk 0:02:58.4]}
7. Qd2 {[%clk 0:03:00.6]} 7... Ne7 {[%clk 0:02:57.7]} 8. Nd1 {[%clk 0:02:57.7]}
8... O-O {[%clk 0:02:55.4]} 9. c3 {[%clk 0:02:57]} 9... Ndc6 {[%clk 0:02:55.7]}
10. Bxc5 {[%clk 0:02:53.7]} 10... d6 {[%clk 0:02:55.5]} 11. Be3 {[%clk
0:02:44.8]} 11... d5 {[%clk 0:02:56]} 12. exd5 {[%clk 0:02:36.2]} 12... Nxd5
{[%clk 0:02:52]} 13. Ne2 {[%clk 0:02:19.7]} 13... Nxe3 {[%clk 0:02:50.2]} 14.
Nxe3 {[%clk 0:02:19.9]} 14... Ne5 {[%clk 0:02:46]} 15. d4 {[%clk 0:02:18.8]}
15... Nc6 {[%clk 0:02:43.3]} 16. O-O {[%clk 0:02:18.7]} 16... Qc7 {[%clk
0:02:42.1]} 17. a4 {[%clk 0:02:13.8]} 17... b6 {[%clk 0:02:40.8]} 18. d5 {[%clk
0:02:07.9]} 18... exd5 {[%clk 0:02:32.6]} 19. Nxd5 {[%clk 0:02:08.1]} 19... Qd6
{[%clk 0:02:32.7]} 20. Rfd1 {[%clk 0:02:02.2]} 20... Bb7 {[%clk 0:02:29.9]} 21.
Nb4 {[%clk 0:01:57.6]} 21... Qf6 {[%clk 0:01:44.2]} 22. Qd6 {[%clk 0:01:51]}
22... Nxb4 {[%clk 0:01:41.1]} 23. Qxf6 {[%clk 0:01:40.3]} 23... Bxf6 {[%clk
0:01:40.1]} 24. Bxb7 {[%clk 0:01:24.7]} 24... Rab8 {[%clk 0:01:40]} 25. Bf3
{[%clk 0:01:17.4]} 25... Na6 {[%clk 0:01:38.8]} 26. Rd7 {[%clk 0:01:14.4]} 26...
Nc5 {[%clk 0:01:30.8]} 27. Rxa7 {[%clk 0:01:09.9]} 27... Rfd8 {[%clk 0:01:30.9]}
28. Nf4 {[%clk 0:00:58.7]} 28... Rd2 {[%clk 0:01:24.4]} 29. Bd5 {[%clk
0:00:46.7]} 29... Rf8 {[%clk 0:01:18.5]} 30. Rb1 {[%clk 0:00:40.7]} 30... Be5
{[%clk 0:00:54.4]} 31. Bc4 {[%clk 0:00:27.7]} 31... Bb8 {[%clk 0:00:51.3]} 32.
Re7 {[%clk 0:00:25.1]} 32... Nxa4 {[%clk 0:00:51.2]} 33. Rbe1 {[%clk 0:00:19.2]}
33... Nxb2 {[%clk 0:00:49.5]} 34. Bb3 {[%clk 0:00:10.9]} 34... Bxf4 {[%clk
0:00:49]} 35. gxf4 {[%clk 0:00:11.8]} 35... Nd3 {[%clk 0:00:48.2]} 36. Rd1
{[%clk 0:00:09]} 36... Rxd1+ {[%clk 0:00:45.3]} 37. Bxd1 {[%clk 0:00:09.9]}
37... Nxf4 {[%clk 0:00:45.7]} 38. Bb3 {[%clk 0:00:10.4]} 38... Kg7 {[%clk
0:00:41.7]} 39. Rb7 {[%clk 0:00:09.8]} 39... Ne2+ {[%clk 0:00:41.2]} 40. Kf1
{[%clk 0:00:07.5]} 40... Nxc3 {[%clk 0:00:41.2]} 41. Rxb6 {[%clk 0:00:06.4]}
41... Ne4 {[%clk 0:00:41.3]} 42. Bc2 {[%clk 0:00:02.6]} 42... Nc5 {[%clk
0:00:34.1]} 43. Rc6 {[%clk 0:00:02.8]} 43... Ne6 {[%clk 0:00:34.1]} 44. Ra6
{[%clk 0:00:02.4]} 44... Nd4 {[%clk 0:00:32.4]} 45. Bd3 {[%clk 0:00:02.3]} 45...
Rb8 {[%clk 0:00:26.7]} 46. Bc4 {[%clk 0:00:02.1]} 46... Rb4 {[%clk 0:00:25.2]}
47. Bd5 {[%clk 0:00:02]} 47... Rb5 {[%clk 0:00:20.4]} 48. Bc4 {[%clk 0:00:01.9]}
48... Rc5 {[%clk 0:00:20.5]} 49. Ra4 {[%clk 0:00:01.4]} 49... Nf5 {[%clk
0:00:17.6]} 50. Kg2 {[%clk 0:00:01.5]} 50... Re5 {[%clk 0:00:17]} 51. Bd3 {[%clk
0:00:01.5]} 51... Nd6 {[%clk 0:00:14.8]} 52. Bc2 {[%clk 0:00:01.8]} 52... Re7
{[%clk 0:00:14.3]} 53. Bd1 {[%clk 0:00:02.2]} 53... Nf5 {[%clk 0:00:13.6]} 54.
Bf3 {[%clk 0:00:02.5]} 54... Nh4+ {[%clk 0:00:13.5]} 55. Rxh4 {[%clk 0:00:02.1]}
55... f5 {[%clk 0:00:13.2]} 56. Rd4 {[%clk 0:00:01.8]} 56... Kf6 {[%clk
0:00:12.7]} 57. Rd6+ {[%clk 0:00:01.9]} 57... Kg7 {[%clk 0:00:12.9]} 58. Rd1
{[%clk 0:00:02.8]} 58... g5 {[%clk 0:00:13.4]} 59. Rb1 {[%clk 0:00:03.1]} 59...
Kf6 {[%clk 0:00:11.2]} 60. Rb6+ {[%clk 0:00:02.7]} 60... Ke5 {[%clk 0:00:11.6]}
61. h3 {[%clk 0:00:03.1]} 61... Rg7 {[%clk 0:00:10.5]} 62. Rb5+ {[%clk
0:00:03.2]} 62... Kf4 {[%clk 0:00:10.6]} 63. Rb4+ {[%clk 0:00:03.5]} 63... Ke5
{[%clk 0:00:10.8]} 64. Rb5+ {[%clk 0:00:03.7]} 64... Kf4 {[%clk 0:00:11.1]} 65.
Ra5 {[%clk 0:00:04.2]} 65... g4 {[%clk 0:00:10.8]} 66. Ra4+ {[%clk 0:00:02.7]}
66... Ke5 {[%clk 0:00:08.9]} 67. hxg4 {[%clk 0:00:03]} 67... h5 {[%clk
0:00:08.7]} 68. Ra5+ {[%clk 0:00:03.5]} 68... Ke6 {[%clk 0:00:06.7]} 69. Rxf5
{[%clk 0:00:02.7]} 69... hxg4 {[%clk 0:00:07.1]} 70. Be4 {[%clk 0:00:03.2]}
70... Kd6 {[%clk 0:00:04.5]} 71. Rd5+ {[%clk 0:00:02.3]} 71... Ke6 {[%clk
0:00:04.7]} 72. Rd1 {[%clk 0:00:03]} 72... Ke5 {[%clk 0:00:04.9]} 73. Bc2 {[%clk
0:00:02.9]} 73... Kf4 {[%clk 0:00:05.2]} 74. Rd4+ {[%clk 0:00:02.9]} 74... Ke5
{[%clk 0:00:05.7]} 75. Re4+ {[%clk 0:00:03.1]} 75... Kf6 {[%clk 0:00:06.2]} 76.
Bd1 {[%clk 0:00:02.8]} 76... Rg6 {[%clk 0:00:04.7]} 77. Rxg4 {[%clk 0:00:02.5]}
77... Rh6 {[%clk 0:00:04]} 78. Rf4+ {[%clk 0:00:02.7]} 78... Kg5 {[%clk
0:00:04.3]} 79. Rf3 {[%clk 0:00:03.6]} 79... Kg4 {[%clk 0:00:04.6]} 80. Rg3+
{[%clk 0:00:04.5]} 80... Kf4 {[%clk 0:00:04.5]} 81. Rf3+ {[%clk 0:00:04.8]}
81... Ke5 {[%clk 0:00:05]} 82. Re3+ {[%clk 0:00:04.8]} 82... Kf4 {[%clk
0:00:05.3]} 83. Kf1 {[%clk 0:00:04.1]} 83... Rh1+ {[%clk 0:00:04.4]} 84. Ke2
{[%clk 0:00:04.5]} 84... Rh2 {[%clk 0:00:05]} 85. Bc2 {[%clk 0:00:04.3]} 85...
Rg2 {[%clk 0:00:04.8]} 86. Rf3+ {[%clk 0:00:04.7]} 86... Kg4 {[%clk 0:00:04.7]}
87. Bf5+ {[%clk 0:00:04.3]} 87... Kg5 {[%clk 0:00:05.1]} 88. Bh3 {[%clk
0:00:04]} 88... Rh2 {[%clk 0:00:05]} 89. Rg3+ {[%clk 0:00:04]} 89... Kf4 {[%clk
0:00:05.4]} 90. Bd7 {[%clk 0:00:03.5]} 90... Ke4 {[%clk 0:00:05.5]} 91. Rg4+
{[%clk 0:00:03.8]} 91... Ke5 {[%clk 0:00:05.5]} 92. Ke3 {[%clk 0:00:04.2]} 92...
Rh7 {[%clk 0:00:03.8]} 93. Re4+ {[%clk 0:00:03.8]} 93... Kd5 {[%clk 0:00:03.6]}
94. Ba4 {[%clk 0:00:04.7]} 94... Rh3+ {[%clk 0:00:03.4]} 95. f3 {[%clk
0:00:04.9]} 95... Rh1 {[%clk 0:00:03.5]} 96. Bb3+ {[%clk 0:00:04.4]} 96... Kd6
{[%clk 0:00:03.1]} 97. Rd4+ {[%clk 0:00:04.8]} 97... Ke5 {[%clk 0:00:03.3]} 98.
Rd5+ {[%clk 0:00:05.3]} 98... Kf6 {[%clk 0:00:03.4]} 99. Rd6+ {[%clk 0:00:05.5]}
99... Ke5 {[%clk 0:00:03.6]} 100. Re6+ {[%clk 0:00:06]} 100... Kf5 {[%clk
0:00:03.8]} 101. Re4 {[%clk 0:00:05.4]} 101... Re1+ {[%clk 0:00:03.2]} 102. Kd4
{[%clk 0:00:05.7]} 102... Ra1 {[%clk 0:00:02.8]} 103. Bc2 {[%clk 0:00:05.2]}
103... Ra3 {[%clk 0:00:02.7]} 104. Re3+ {[%clk 0:00:05]} 1-0

[Event "*** Titled Tuesday Blitz"]
[Site "Chess.com"]
[Date "2021.04.06"]
[Round "8"]
[White "Sam_ChessMood"]
[Black "GoltsevDmitry2000"]
[Result "1-0"]
[WhiteElo "2890"]
[BlackElo "2751"]
[TimeControl "180+1"]
[EndTime "11:32:31 PDT"]
[Termination "Sam_ChessMood won by resignation"]

1. d4 {[%clk 0:03:00.9]} 1... Nf6 {[%clk 0:02:59.9]} 2. c4 {[%clk 0:03:01]} 2...
e6 {[%clk 0:03:00.4]} 3. Nf3 {[%clk 0:02:59.9]} 3... Bb4+ {[%clk 0:03:00.6]} 4.
Nbd2 {[%clk 0:02:58.6]} 4... Qe7 {[%clk 0:02:58]} 5. g3 {[%clk 0:02:56.2]} 5...
b6 {[%clk 0:02:58.1]} 6. Bg2 {[%clk 0:02:56.2]} 6... Bb7 {[%clk 0:02:58.2]} 7.
O-O {[%clk 0:02:56.2]} 7... O-O {[%clk 0:02:58.4]} 8. Nb3 {[%clk 0:02:50.5]}
8... d5 {[%clk 0:02:52.2]} 9. c5 {[%clk 0:02:39.5]} 9... bxc5 {[%clk 0:02:50.7]}
10. a3 {[%clk 0:02:37.9]} 10... c4 {[%clk 0:02:50.7]} 11. axb4 {[%clk
0:02:37.1]} 11... cxb3 {[%clk 0:02:50.1]} 12. Qxb3 {[%clk 0:02:36.9]} 12... c6
{[%clk 0:02:45.7]} 13. Bg5 {[%clk 0:02:22.1]} 13... Nbd7 {[%clk 0:02:45.7]} 14.
Ne5 {[%clk 0:02:20.7]} 14... h6 {[%clk 0:02:34.1]} 15. Nxd7 {[%clk 0:02:07.5]}
15... Qxd7 {[%clk 0:02:35]} 16. Bxf6 {[%clk 0:02:07.8]} 16... gxf6 {[%clk
0:02:35.9]} 17. Ra5 {[%clk 0:02:05.9]} 17... a6 {[%clk 0:02:32.5]} 18. Rfa1
{[%clk 0:01:54.2]} 18... e5 {[%clk 0:02:30.9]} 19. e3 {[%clk 0:01:37]} 19... e4
{[%clk 0:02:29.4]} 20. Bf1 {[%clk 0:01:32.6]} 20... Rfb8 {[%clk 0:02:27]} 21.
Qd1 {[%clk 0:01:27.7]} 21... Bc8 {[%clk 0:02:24.3]} 22. R1a4 {[%clk 0:01:23.8]}
22... Kg7 {[%clk 0:02:22.2]} 23. Qh5 {[%clk 0:01:16.4]} 23... Rb6 {[%clk
0:02:18.9]} 24. Qd1 {[%clk 0:01:07.3]} 24... Qd6 {[%clk 0:02:15.3]} 25. Qd2
{[%clk 0:01:05.9]} 25... Rab8 {[%clk 0:01:58]} 26. Rc5 {[%clk 0:01:05.9]} 26...
a5 {[%clk 0:01:46.8]} 27. bxa5 {[%clk 0:01:05.6]} 27... Rxb2 {[%clk 0:01:46.6]}
28. Qe1 {[%clk 0:01:03.8]} 28... Rb1 {[%clk 0:01:43.6]} 29. Rc1 {[%clk
0:01:03.8]} 29... R1b2 {[%clk 0:01:24.1]} 30. a6 {[%clk 0:01:02.7]} 30... Ra8
{[%clk 0:01:20.7]} 31. a7 {[%clk 0:00:57.3]} 31... Rb7 {[%clk 0:01:17.9]} 32.
Rca1 {[%clk 0:00:56]} 32... Qc7 {[%clk 0:01:14.4]} 33. Qa5 {[%clk 0:00:53.3]}
33... Qxa5 {[%clk 0:01:11.5]} 34. Rxa5 {[%clk 0:00:54.2]} 34... Rc7 {[%clk
0:01:12]} 35. Be2 {[%clk 0:00:49.4]} 35... Kf8 {[%clk 0:01:10.9]} 36. Kf1 {[%clk
0:00:49.3]} 36... Ke7 {[%clk 0:01:11.2]} 37. Ke1 {[%clk 0:00:49.7]} 37... Kd6
{[%clk 0:01:09.9]} 38. Kd2 {[%clk 0:00:49.8]} 38... Rb7 {[%clk 0:01:07.4]} 39.
Kc3 {[%clk 0:00:49.2]} 39... Kc7 {[%clk 0:01:07]} 40. Bh5 {[%clk 0:00:39.8]}
40... Be6 {[%clk 0:01:01.7]} 41. Bd1 {[%clk 0:00:36.6]} 41... Bd7 {[%clk
0:00:52.9]} 42. Bc2 {[%clk 0:00:36.1]} 42... Rb6 {[%clk 0:00:51.6]} 43. R5a3
{[%clk 0:00:26.8]} 43... Kb7 {[%clk 0:00:50.3]} 44. Bd1 {[%clk 0:00:21.8]} 44...
Bf5 {[%clk 0:00:38.6]} 45. f3 {[%clk 0:00:20]} 45... Be6 {[%clk 0:00:35.9]} 46.
fxe4 {[%clk 0:00:17.3]} 46... dxe4 {[%clk 0:00:36.8]} 47. Bc2 {[%clk 0:00:17.2]}
47... f5 {[%clk 0:00:35.2]} 48. Ra4 {[%clk 0:00:17.5]} 48... Bd5 {[%clk
0:00:33]} 49. Rb4 {[%clk 0:00:12.1]} 49... Rxa7 {[%clk 0:00:31.1]} 50. Rxb6+
{[%clk 0:00:12.4]} 50... Kxb6 {[%clk 0:00:31.2]} 51. Rxa7 {[%clk 0:00:13.1]}
51... Kxa7 {[%clk 0:00:32.1]} 52. Kb4 {[%clk 0:00:13.6]} 52... Kb6 {[%clk
0:00:32.6]} 53. Bd1 {[%clk 0:00:14]} 53... Be6 {[%clk 0:00:31.3]} 54. Be2 {[%clk
0:00:13.6]} 54... Bd7 {[%clk 0:00:29.7]} 55. Bf1 {[%clk 0:00:10.2]} 55... Bc8
{[%clk 0:00:29.2]} 56. Be2 {[%clk 0:00:09.2]} 56... Be6 {[%clk 0:00:28.9]} 57.
Bh5 {[%clk 0:00:09.3]} 57... Bd5 {[%clk 0:00:27.8]} 58. Be2 {[%clk 0:00:06.9]}
58... Be6 {[%clk 0:00:27.2]} 59. Bd1 {[%clk 0:00:06.1]} 59... Bc8 {[%clk
0:00:25]} 60. Bb3 {[%clk 0:00:04.8]} 60... Be6 {[%clk 0:00:25.3]} 61. Bc4 {[%clk
0:00:05.3]} 61... Kc7 {[%clk 0:00:21.6]} 62. Ba6 {[%clk 0:00:03]} 62... Kd6
{[%clk 0:00:20.7]} 63. Be2 {[%clk 0:00:03.6]} 63... Bd7 {[%clk 0:00:19.8]} 64.
Kc3 {[%clk 0:00:03.9]} 64... Be6 {[%clk 0:00:18]} 65. Bf1 {[%clk 0:00:03.8]}
65... c5 {[%clk 0:00:17.1]} 66. Be2 {[%clk 0:00:03.9]} 66... Bc8 {[%clk
0:00:16.1]} 67. Bc4 {[%clk 0:00:03.6]} 67... Be6 {[%clk 0:00:16.4]} 68. Be2
{[%clk 0:00:03.9]} 68... Bd5 {[%clk 0:00:14.6]} 69. Bf1 {[%clk 0:00:04.2]} 69...
cxd4+ {[%clk 0:00:14.8]} 70. Kxd4 {[%clk 0:00:03.9]} 70... Ke6 {[%clk
0:00:15.4]} 71. Be2 {[%clk 0:00:04.3]} 71... Bb7 {[%clk 0:00:14.9]} 72. Bc4+
{[%clk 0:00:03.9]} 72... Kf6 {[%clk 0:00:15.2]} 73. Be2 {[%clk 0:00:04.6]} 73...
Bc8 {[%clk 0:00:15.4]} 74. Bd1 {[%clk 0:00:04.6]} 74... Be6 {[%clk 0:00:15.6]}
75. Be2 {[%clk 0:00:05]} 75... Bb3 {[%clk 0:00:13.8]} 76. Bf1 {[%clk 0:00:04.9]}
76... Be6 {[%clk 0:00:13.5]} 77. Be2 {[%clk 0:00:05.2]} 77... Bc8 {[%clk
0:00:13.3]} 78. Bd1 {[%clk 0:00:05.5]} 78... Ba6 {[%clk 0:00:10.9]} 79. Bh5
{[%clk 0:00:04.9]} 79... Bf1 {[%clk 0:00:11.2]} 80. Bd1 {[%clk 0:00:04.4]} 80...
Bg2 {[%clk 0:00:11.1]} 81. Be2 {[%clk 0:00:04.4]} 81... Bf3 {[%clk 0:00:10.5]}
82. Bf1 {[%clk 0:00:04.6]} 82... h5 {[%clk 0:00:10.5]} 83. h4 {[%clk 0:00:02.9]}
83... Ke6 {[%clk 0:00:10.7]} 84. Bc4+ {[%clk 0:00:02.9]} 84... Kf6 {[%clk
0:00:10.4]} 85. Bf1 {[%clk 0:00:03.8]} 85... Bd1 {[%clk 0:00:10.4]} 86. Bc4
{[%clk 0:00:03.7]} 86... Bg4 {[%clk 0:00:10.7]} 87. Bf1 {[%clk 0:00:03.9]} 87...
Bf3 {[%clk 0:00:10.9]} 88. Bc4 {[%clk 0:00:04]} 88... Bg4 {[%clk 0:00:09.7]} 89.
Bf1 {[%clk 0:00:04.1]} 89... Bd1 {[%clk 0:00:10.1]} 90. Bc4 {[%clk 0:00:04.3]}
90... Bc2 {[%clk 0:00:07.9]} 91. Be2 {[%clk 0:00:04]} 91... Kg6 {[%clk
0:00:08.2]} 92. Ke5 {[%clk 0:00:04.4]} 92... f6+ {[%clk 0:00:08.4]} 93. Ke6
{[%clk 0:00:04.8]} 93... Bd3 {[%clk 0:00:08.3]} 94. Bd1 {[%clk 0:00:04.3]} 94...
Bf1 {[%clk 0:00:08.2]} 95. Ke7 {[%clk 0:00:04.5]} 95... Bc4 {[%clk 0:00:06.9]}
96. Bc2 {[%clk 0:00:04.4]} 96... Bd5 {[%clk 0:00:06.5]} 97. Ba4 {[%clk
0:00:04.3]} 97... Kg7 {[%clk 0:00:05.1]} 98. Be8 {[%clk 0:00:03.8]} 98... Bg8
{[%clk 0:00:04.1]} 99. Bxh5 {[%clk 0:00:03.8]} 99... Bh7 {[%clk 0:00:04.1]} 100.
Be2 {[%clk 0:00:03.8]} 100... Bg6 {[%clk 0:00:04.1]} 101. Bc4 {[%clk 0:00:04.2]}
101... Bh7 {[%clk 0:00:04]} 102. Bf7 {[%clk 0:00:04.4]} 102... Bg6 {[%clk
0:00:02.7]} 103. Bxg6 {[%clk 0:00:04.4]} 103... Kxg6 {[%clk 0:00:03.6]} 104. Ke6
{[%clk 0:00:04.9]} 104... Kh5 {[%clk 0:00:02.2]} 105. Kxf5 {[%clk 0:00:05.1]}
105... Kh6 {[%clk 0:00:02.8]} 106. Kxf6 {[%clk 0:00:05.7]} 106... Kh5 {[%clk
0:00:02.9]} 107. Kf5 {[%clk 0:00:06.3]} 1-0

[Event "*** Titled Tuesday Blitz"]
[Site "Chess.com"]
[Date "2021.04.06"]
[Round "9"]
[White "vrekhson"]
[Black "Diaschess88"]
[Result "0-1"]
[WhiteElo "2225"]
[BlackElo "2405"]
[TimeControl "180+1"]
[EndTime "11:39:30 PDT"]
[Termination "Diaschess88 won by resignation"]

1. e4 {[%clk 0:03:00.9]} 1... c6 {[%clk 0:02:59.7]} 2. d4 {[%clk 0:02:59.4]}
2... d5 {[%clk 0:03:00.6]} 3. Nc3 {[%clk 0:02:59.3]} 3... dxe4 {[%clk
0:03:00.3]} 4. Nxe4 {[%clk 0:03:00.2]} 4... Nf6 {[%clk 0:03:00.8]} 5. Nxf6+
{[%clk 0:03:00.4]} 5... exf6 {[%clk 0:03:01.7]} 6. Ne2 {[%clk 0:03:00.8]} 6...
Bd6 {[%clk 0:03:00.1]} 7. Ng3 {[%clk 0:02:59.8]} 7... h5 {[%clk 0:02:58.2]} 8.
Bd3 {[%clk 0:02:58.9]} 8... h4 {[%clk 0:02:57.6]} 9. Nf5 {[%clk 0:02:58]} 9...
Bxf5 {[%clk 0:02:56.8]} 10. Bxf5 {[%clk 0:02:58.9]} 10... Qa5+ {[%clk
0:02:56.3]} 0-1

[Event "*** Titled Tuesday Blitz"]
[Site "Chess.com"]
[Date "2021.04.06"]
[Round "9"]
[White "Chessdude1987"]
[Black "Lion-Al-Messi"]
[Result "0-1"]
[WhiteElo "2321"]
[BlackElo "2498"]
[TimeControl "180+1"]
[EndTime "11:40:44 PDT"]
[Termination "Lion-Al-Messi won by resignation"]

1. e4 {[%clk 0:03:00.9]} 1... e6 {[%clk 0:02:59.1]} 2. d4 {[%clk 0:03:00.7]}
2... d5 {[%clk 0:03:00]} 3. exd5 {[%clk 0:03:00.2]} 3... exd5 {[%clk 0:03:00.9]}
4. c4 {[%clk 0:03:00.9]} 4... Nf6 {[%clk 0:03:00.3]} 5. Nc3 {[%clk 0:03:01.2]}
5... Be7 {[%clk 0:03:00.2]} 6. Nf3 {[%clk 0:02:59.8]} 6... O-O {[%clk 0:03:00]}
7. cxd5 {[%clk 0:02:59]} 7... Nxd5 {[%clk 0:02:59.9]} 8. Bd3 {[%clk 0:02:52.8]}
8... Nc6 {[%clk 0:02:59.5]} 9. O-O {[%clk 0:02:51.4]} 9... Bg4 {[%clk
0:02:58.3]} 10. Be4 {[%clk 0:02:51.2]} 10... Nf6 {[%clk 0:02:56.1]} 11. Bxc6
{[%clk 0:02:51]} 11... bxc6 {[%clk 0:02:56.2]} 12. Be3 {[%clk 0:02:49.5]} 12...
Bd6 {[%clk 0:02:55.4]} 13. h3 {[%clk 0:02:49.3]} 13... Bh5 {[%clk 0:02:55]} 14.
g4 {[%clk 0:02:49.3]} 14... Nxg4 {[%clk 0:02:53.8]} 15. hxg4 {[%clk 0:02:48]}
15... Bxg4 {[%clk 0:02:54.7]} 16. Ne4 {[%clk 0:02:44.7]} 16... Qd7 {[%clk
0:02:48.2]} 17. Ng3 {[%clk 0:02:38.6]} 17... Rfe8 {[%clk 0:02:44.5]} 18. Re1
{[%clk 0:02:15.7]} 18... Bxg3 {[%clk 0:02:43.2]} 19. fxg3 {[%clk 0:02:15.5]}
19... Qd5 {[%clk 0:02:43.3]} 20. Ne5 {[%clk 0:02:06.9]} 20... Bxd1 {[%clk
0:02:42.4]} 0-1